[Event "55th Iranian-ch Men Final 2022"]
[Site "Iran"]
[Date "2022.06.19"]
[Round "7.4"]
[White "Ashraf, Artin"]
[Black "Daghli, Arash"]
[Result "1/2-1/2"]
[ECO "A81"]
[WhiteElo "2096"]
[BlackElo "2441"]
[Annotator "TA"]
[PlyCount "122"]
[EventDate "2022.06.15"]
[EventType "tourn"]
[EventCountry "IRI"]
[SourceTitle "playchess.com"]
[Source "ChessBase"]
[SourceQuality "1"]
[TimeControl "40/5400+30:1800+30"]

{[%evp 10,122,23,23,22,25,25,25,20,14,17,0,4,0,18,0,0,0,1,0,9,4,25,-2,5,0,0,-34,0,15,18,-1,-10,-10,-11,-59,-59,-59,-57,-60,-80,-85,-22,-29,-24,-39,-43,-46,-25,-47,-20,-36,-38,-37,0,-28,-36,-48,-48,-60,-61,-81,-81,-79,-89,-78,-81,-184,-76,-95,0,-168,-177,-232,-131,-135,-128,-133,-137,-126,-134,-133,-127,-87,-28,-60,-59,-55,-59,-51,-51,-45,-46,-26,-34,-50,0,0,0,0,0,0,0,0,0,0,0,0,0,0,0,0,0,0,0]} 1. d4 {[%emt 0:02:36]} f5 {[%emt 0:00:31]} 2. g3 {[%emt 0:00:09]} Nf6 {[%emt 0:00:06]} 3. Bg2 {[%emt 0:00:44]} g6 {[%emt 0:00:02]} 4. c3 {[%emt 0:01:39]} Bg7 {[%emt 0:00:20]} 5. Qb3 {[%emt 0:00:11]} Nc6 {[%emt 0:00:11]} 6. Nh3 {[%emt 0:05:45][%cal Bg1h3,Bh3f4,Bf4d3][%mdl 32]} d5 {[%emt 0:00:22] is the legacy move (6...b6). A81: Dutch Defence: 2 g3.} 7. Nf4 {[%emt 0:02:10][%cal Rf4d5]} e6 {[%emt 0:00:03]} 8. Nd2 {[%emt 0:00:21]} O-O {[%emt 0:00:06] White has an edge.} 9. Nf3 {[%emt 0:00:42]} Ne4 {[%emt 0:05:32]} 10. O-O {[%emt 0:06:41]} b6 {[%emt 0:01:49]} 11. Nd3 {[%emt 0:09:17]} a5 {[%emt 0:04:42]} 12. Qc2 {[%emt 0:04:08]} Ba6 {[%emt 0:01:02] [#]} 13. b3 $146 {[%emt 0:01:18]} ({Predecessor:} 13. Rd1 Qe7 14. b3 a4 15. Rb1 axb3 16. axb3 Bb5 17. Be3 Ra3 18. h4 Rfa8 19. Ng5 {½-½ (58) Le,Q (2577)-Swiercz,D (2456) Gaziantep 2008}) 13... g5 {[%emt 0:01:47][%cal Bg6g5,Bg5g4][%mdl 32]} 14. Ba3 {[%emt 0:06:32]} Re8 {[%emt 0:02:28]} 15. Rfd1 {[%emt 0:02:26]} Rc8 {[%emt 0:10:08]} 16. e3 {[%emt 0:09:58]} (16. Nfe5 $5 {[%cal Re5c6]} Nxe5 17. dxe5 $11) 16... g4 {[%emt 0:08:51]} 17. Nd2 {[%emt 0:01:07]} Ne7 {[%emt 0:03:52]} 18. Rac1 {[%emt 0:11:04]} Ng6 {[%emt 0:05:47]} (18... c5 $15 {might be stronger.} 19. Nxe4 dxe4) 19. c4 $11 {[%emt 0:01:43]} c6 {[%emt 0:01:07]} 20. f4 {[%emt 0:03:14]} gxf3 {[%emt 0:01:51]} 21. Nxf3 {[%emt 0:00:02]} b5 {[%emt 0:03:10][%cal Bb6b5,Bb5b4][%mdl 32]} 22. c5 {[%emt 0:06:37]} (22. Nc5 $11 Nxc5 23. Bxc5) 22... b4 $15 {[%emt 0:00:27]} 23. Bb2 {[%emt 0:00:06]} Bxd3 {[%emt 0:10:14]} 24. Qxd3 {[%emt 0:05:30]} h5 $1 {[%emt 0:03:18]} 25. Rc2 {[%emt 0:02:27]} Bh6 {[%emt 0:01:48]} (25... h4 $17 26. g4 Rf8 27. gxf5 Rxf5) 26. Rf1 {[%emt 0:01:44]} Re7 {[%emt 0:00:50]} 27. Kh1 {[%emt 0:02:26]} Rg7 {[%emt 0:00:41]} 28. Bh3 $1 {[%emt 0:00:22]} Qc7 {[%emt 0:05:06]} 29. Rg2 {[%emt 0:02:00]} Rf8 {[%emt 0:00:53]} 30. Bc1 {[%emt 0:00:13]} Nh8 {[%emt 0:02:23][%cal Bg6h8,Bh8f7,Bf7h6,Bh6g4][%mdl 32]} 31. Qd1 {[%emt 0:00:59]} Nc3 {[%emt 0:02:57]} 32. Qd3 {[%emt 0:00:18]} (32. Qe1 $5 {[%cal Re3e4]}) 32... Nf7 {[%emt 0:02:17]} 33. Bd2 {[%emt 0:01:19]} Ne4 {[%emt 0:00:34]} ({Much less strong is} 33... Nxa2 34. Ra1 Nc3 35. Bxc3 bxc3 36. Qxc3 $14) 34. Rgg1 {[%emt 0:00:09]} Bg5 {[%emt 0:08:48]} 35. Be1 {[%emt 0:00:16]} Nh6 {[%emt 0:01:26]} 36. Rg2 {[%emt 0:01:12]} Ng4 {[%emt 0:02:29] Pair of Knights!} 37. Re2 {[%emt 0:00:07]} Rf6 {[%emt 0:02:15]} 38. Rg1 {[%emt 0:01:04]} (38. Nxg5 $17 Rxg5 39. Qa6) 38... Rh6 {[%emt 0:00:22]} (38... Bxe3 $1 $19 {and Black stays clearly on top. Hoping for ...Bf2.} 39. Rf1 Bh6) 39. Rgg2 {[%emt 0:00:09]} Rf6 {[%emt 0:03:22]} (39... Rhg6 $17) 40. Rg1 $19 {[%emt 0:00:00]} Bxe3 $1 {[%emt 0:00:00]} 41. Bxg4 {[%emt 0:06:36]} (41. Rf1 {is a better defense.} Bh6 42. Bg2) 41... fxg4 {[%emt 0:04:14]} ({Better is} 41... Bxg1 $19 42. Bh3 Bxh2 $1 {[%mdl 512]} 43. Rxh2 f4 44. gxf4 Qxf4) 42. Rxe3 $17 {[%emt 0:00:18]} gxf3 {[%emt 0:00:41]} 43. Rxf3 {[%emt 0:01:09]} Rxf3 {[%emt 0:00:12]} 44. Qxf3 {[%emt 0:00:09]} Qf7 {[%emt 0:00:00]} 45. Kg2 {[%emt 0:09:33] [#]} Qg6 $1 {[%emt 0:15:44]} 46. Rf1 {[%emt 0:05:15] [#]} Ng5 {[%emt 0:07:10]} ({Black should try} 46... Rf7 $1 $17 {[%cal Rf7f3]} 47. Qe2 Rxf1 48. Kxf1 Kf7) 47. Qe2 {[%emt 0:01:19]} Rf7 {[%emt 0:01:33]} 48. Rxf7 {[%emt 0:05:02]} Kxf7 $15 {[%emt 0:00:02][%mdl 4096] Endgame KQB-KQN} 49. Bd2 {[%emt 0:01:16]} Qe4+ {[%emt 0:00:47]} 50. Qxe4 {[%emt 0:00:15]} Nxe4 {[%emt 0:00:01] KB-KN} 51. Bf4 {[%emt 0:00:41]} Nc3 {[%emt 0:00:40]} 52. Bc7 {[%emt 0:00:10]} a4 {[%emt 0:01:48]} (52... Nxa2 $15 53. Bxa5 Nc1 54. Bxb4 Nxb3) 53. bxa4 $11 {[%emt 0:01:12] The position is equal.} Ke8 {[%emt 0:01:44]} (53... Nxa2 $5 54. a5 b3 $11) 54. Kf2 {[%emt 0:04:10] Black must now prevent a5.} Nxa2 {[%emt 0:03:12] Threatens to win with ...b3.} 55. Ke3 {[%emt 0:00:17]} Nc3 {[%emt 0:05:23]} 56. Ba5 {[%emt 0:00:56]} Nxa4 {[%emt 0:00:33] ...b3 is the strong threat.} 57. Bxb4 {[%emt 0:00:27]} Nb2 {[%emt 0:00:38]} 58. Bc3 {[%emt 0:02:07]} Nd1+ {[%emt 0:00:21]} 59. Kd3 {[%emt 0:00:10]} Nxc3 {[%emt 0:00:47]} 60. Kxc3 {[%emt 0:00:01]} Kf7 {[%emt 0:00:27]} 61. Kd3 {[%emt 0:00:30] aiming for Ke3.} Kf6 {[%emt 0:01:06] White happily takes the draw.  Weighted Error Value: White=0.10 (very precise) /Black=0.14 (very precise)} 1/2-1/2

[Event "55th Iranian-ch Men Final 2022"]
[Site "Iran"]
[Date "2022.06.19"]
[Round "7.5"]
[White "Ghaem Maghami, Ehsan"]
[Black "Daneshvar, Bardiya"]
[Result "1/2-1/2"]
[ECO "D45"]
[WhiteElo "2519"]
[BlackElo "2486"]
[Annotator "TA"]
[PlyCount "46"]
[EventDate "2022.06.15"]
[EventType "tourn"]
[EventCountry "IRI"]
[SourceTitle "playchess.com"]
[Source "ChessBase"]
[SourceQuality "1"]
[TimeControl "40/5400+30:1800+30"]

{[%evp 11,46,14,14,0,4,0,0,0,0,0,-6,-16,16,18,18,24,20,13,25,43,19,-43,-52,-52,-33,-83,-62,-176,-111,-143,-108,-105,-75,-96,-81,-94,-69]} 1. c4 {[%emt 1:31:00]} c6 {[%emt 0:00:10]} 2. Nf3 {[%emt 0:00:00]} d5 {[%emt 0:00:16]} 3. e3 {[%emt 0:00:00]} Nf6 {[%emt 0:01:45]} 4. Nc3 {[%emt 0:00:00]} e6 {[%emt 0:00:11]} 5. Qc2 {[%emt 0:00:00]} a6 {[%emt 0:01:20]} 6. d4 {[%emt 0:00:00]} c5 {[%emt 0:00:57]} 7. dxc5 {[%emt 0:00:00] D45: Semi-Slav: 5 e3.} Bxc5 {[%emt 0:02:40]} 8. a3 {[%emt 0:00:00]} dxc4 {[%emt 0:08:13]} 9. Bxc4 {[%emt 0:00:00] The position is equal.} b5 {[%emt 0:00:41]} 10. Bd3 {[%emt 0:00:00][%cal Oc3b5]} Nbd7 {[%emt 0:04:49]} 11. Ne4 {[%emt 0:00:00]} Nxe4 {[%emt 0:07:12]} 12. Bxe4 {[%emt 0:00:00]} Ra7 {[%emt 0:00:35]} 13. Bd2 {[%emt 0:00:00] [#]} Rc7 $146 {[%emt 0:05:15]} ({Predecessor:} 13... Bb7 14. Bc3 Bxe4 15. Qxe4 O-O 16. Rd1 Qe7 17. O-O Rc8 18. Rd3 Nf6 19. Qe5 Rd7 {1-0 (53) Lautier,J (2680)-Najer,E (2641) Khanty-Mansiysk 2005}) 14. Bc3 {[%emt 0:00:00]} b4 {[%emt 0:13:06]} 15. Bxg7 {[%emt 0:00:00]} Bd4 {[%emt 0:08:22]} 16. Bxd4 {[%emt 0:00:00]} ({Of course not} 16. Nxd4 Rxc2 17. Bxh8 Rc4 $11) ({Better is} 16. Bxh8 $11 Rxc2 17. Bxd4) 16... Rxc2 $15 {[%emt 0:00:13]} 17. Bxc2 {[%emt 0:00:00] This bishop pair is nice.} Rg8 {[%emt 0:01:26]} 18. axb4 {[%emt 0:00:00]} (18. O-O $15) 18... Rxg2 $17 {[%emt 0:05:01]} 19. O-O-O {[%emt 0:00:00]} (19. Be4 $15) 19... Qc7 {[%emt 0:06:33]} (19... Rxf2 $19 {White must now prevent ...Bb7.} 20. Rhf1 Rxf1 21. Rxf1 Bb7) 20. Nd2 {[%emt 0:00:00]} Bb7 {[%emt 0:02:45]} 21. e4 {[%emt 0:00:00] Black is better.} a5 {[%emt 0:05:41]} 22. bxa5 {[%emt 0:00:00]} Qxa5 {[%emt 0:24:19]} 23. Kb1 Ba6 {[%emt 0:00:30] Weighted Error Value: White=0.24 (precise) /Black=0.11 (very precise)} 1/2-1/2

[Event "55th Iranian-ch Men Final 2022"]
[Site "Iran"]
[Date "2022.06.19"]
[Round "7.6"]
[White "Mousavi, Seyed Khalil"]
[Black "Khamisi, S Jafar"]
[Result "1-0"]
[ECO "D15"]
[WhiteElo "2524"]
[BlackElo "2118"]
[Annotator "TA"]
[PlyCount "79"]
[EventDate "2022.06.15"]
[EventType "tourn"]
[EventCountry "IRI"]
[SourceTitle "playchess.com"]
[Source "ChessBase"]
[SourceQuality "1"]
[TimeControl "40/5400+30:1800+30"]

{[%evp 9,79,0,0,-18,-14,-8,0,-5,-20,-18,-19,-13,-8,0,0,-5,0,0,0,-14,22,0,17,19,19,14,44,31,26,-36,-16,-50,14,-45,75,76,291,277,260,258,481,463,486,569,528,489,532,177,175,178,175,170,173,174,387,385,380,274,466,471,416,410,29972,29951,29973,29972,29987,724,2123,2593,29990,29991]} 1. Nf3 {[%emt 0:00:10]} d5 {[%emt 0:00:14]} 2. d4 {[%emt 0:00:15]} Nf6 {[%emt 0:00:17]} 3. c4 {[%emt 0:00:06]} c6 {[%emt 0:00:12]} 4. Nc3 {[%emt 0:00:05]} dxc4 {[%emt 0:00:37]} 5. e4 {[%emt 0:00:53]} b5 $1 {[%emt 0:00:24]} 6. Be2 {[%emt 0:00:14] D15: Slav Defence: 4 Nc3 a6 and gambit lines after 4 Nc3 dxc4.} e6 {[%emt 0:02:07]} 7. O-O {[%emt 0:00:21]} Bb7 {[%emt 0:04:13]} 8. b3 {[%emt 0:00:08] The position is equal.} Bb4 {[%emt 0:06:07]} 9. e5 {[%emt 0:01:34]} Bxc3 {[%emt 0:01:35]} 10. exf6 {[%emt 0:00:14]} gxf6 {[%emt 0:01:51]} 11. Rb1 {[%emt 0:01:00][%cal Ba1b1,Bb1b2,Bb2d2][%mdl 32]} c5 {[%emt 0:03:24][%cal Rc5d4]} 12. bxc4 {[%emt 0:06:18]} b4 {[%emt 0:03:17][%cal Rc5d4] [#]} 13. Bb2 $146 {[%emt 0:09:32]} ({Predecessor:} 13. Qc2 cxd4 14. Bh6 Ke7 15. Bg7 Rg8 16. Qxh7 d3 17. Rfd1 dxe2 18. Rxd8 Rxd8 19. Ne1 {0-1 (41) Costachi,M (2471)-Miron,L (2507) Chess.com INT 2020}) 13... Bxb2 {[%emt 0:11:36]} 14. Rxb2 {[%emt 0:00:05]} Nc6 {[%emt 0:05:58]} 15. d5 {[%emt 0:03:47]} Ne5 {[%emt 0:21:25]} 16. Rd2 {[%emt 0:01:12]} exd5 {[%emt 0:03:04]} 17. cxd5 {[%emt 0:01:54]} Qd6 {[%emt 0:01:04]} 18. Bb5+ {[%emt 0:01:55][%mdl 1024] White has compensation.} Kf8 {[%emt 0:01:04]} 19. Nh4 {[%emt 0:00:50]} (19. Nxe5 $11 fxe5 20. Qh5) 19... Bc8 $15 {[%emt 0:03:57]} 20. Re1 {[%emt 0:04:47]} Rb8 {[%emt 0:06:26]} (20... Kg7 $15) 21. Ba4 {[%emt 0:07:53]} (21. f4 $1 $11 Rxb5 22. fxe5 fxe5 23. Qh5) 21... Bg4 {[%emt 0:01:10]} (21... Kg7 $15 {keeps the upper hand.}) 22. f3 $16 {[%emt 0:03:54][%cal Bf2f3,Bf3g4,Bg4g5][%mdl 32]} Ng6 $2 {[%emt 0:04:22] This costs Black the game.} (22... Bc8 $16 {was necessary.}) 23. fxg4 $18 {[%emt 0:00:31] Nf5 is the strong threat.} Nxh4 {[%emt 0:00:06]} 24. Rf2 $1 {[%emt 0:00:54][%cal Og4g5] Black must now prevent g5!} (24. g3 $6 Ng6 $16) 24... Kg7 $2 {[%emt 0:06:56]} (24... Rg8 {keeps fighting.} 25. g3 f5) 25. g5 {[%emt 0:11:17]} Rhd8 {[%emt 0:04:43]} (25... fxg5 $2 26. Qa1+ Kg8 27. Be8) 26. gxf6+ {[%emt 0:18:37]} (26. Qh5 Ng6 27. gxf6+ Kh8 $18) 26... Kh8 {[%emt 0:00:43]} 27. Bc2 {[%emt 0:01:42][%cal Oc2h7] Strongly threatening Bxh7!} (27. Qg4 Ng6 28. h4 b3 $16) 27... Re8 {[%emt 0:02:22]} 28. Re7 {[%emt 0:05:34]} (28. Rxe8+ Rxe8 29. Bxh7 $1 {[%mdl 512]}) 28... Rxe7 {[%emt 0:01:31]} 29. fxe7 {[%emt 0:00:02]} Qxe7 {[%emt 0:00:09]} 30. d6 $40 {[%emt 0:00:31][%cal Bd5d6,Bd6d7][%mdl 160] White wants a kill.} Qe3 {[%emt 0:01:08]} 31. Kf1 {[%emt 0:04:26]} ({Much less strong is} 31. d7 Rd8 $16) 31... Qe6 {[%emt 0:02:46] [#]} (31... Kg7) 32. Bb3 $1 {[%emt 0:01:41][%mdl 64] Skewer} Qe5 {[%emt 0:00:23] Against Qa1} 33. Rxf7 {[%emt 0:00:43]} Nf5 $2 {[%emt 0:00:42]} (33... Qe4) 34. Qb1 {[%emt 0:02:14]} Ng7 {[%emt 0:01:03]} 35. d7 {[%emt 0:00:44]} ({Not} 35. Kg1 Qxd6 36. Qb2 (36. Rxa7 $2 Qd4+ 37. Kh1 c4 $19) 36... Qd4+ 37. Qxd4 cxd4 $16) 35... Qxh2 {[%emt 0:00:26]} (35... Qd4 $18 36. Qc2 Rd8) 36. Qe4 {[%emt 0:00:36]} Qh1+ {[%emt 0:00:30]} 37. Kf2 {[%emt 0:00:06]} Qh6 {[%emt 0:00:13]} 38. Rf4 {[%emt 0:08:44]} (38. Qe7 $142 Qd2+ 39. Kg1 h5 40. Rf8+ Rxf8 41. Qxf8+ Kh7 42. Bg8+ Kg6 43. Qf7+ Kg5 44. Qxg7+ Kf5 45. Qf7+ Kg5 46. Qe7+ Kg4 47. Be6+ Kg3 48. Qg7+ Kf4 49. Qh6+ Ke5 50. Qxd2 Kf6 51. d8=Q+ Kg7 52. Qg8+ Kf6 53. Qdg5#) 38... Rd8 {[%emt 0:00:45]} 39. Qe5 {[%emt 0:00:46]} Qg6 {[%emt 0:00:37]} 40. Qe7 {[%emt 0:00:00] Weighted Error Value: White=0.22 (precise) /Black=0.85} 1-0

[Event "55th Iranian-ch Men Final 2022"]
[Site "Iran"]
[Date "2022.06.19"]
[Round "7.7"]
[White "Atakhan, Abtin"]
[Black "Darini, Pouria"]
[Result "1-0"]
[ECO "D87"]
[WhiteElo "2358"]
[BlackElo "2431"]
[Annotator "TA"]
[PlyCount "123"]
[EventDate "2022.06.15"]
[EventType "tourn"]
[EventCountry "IRI"]
[SourceTitle "playchess.com"]
[Source "ChessBase"]
[SourceQuality "1"]
[TimeControl "40/5400+30:1800+30"]

{[%evp 19,123,17,19,-17,0,-4,21,8,25,0,0,0,16,13,17,16,15,5,15,13,25,13,16,0,0,0,0,0,26,25,27,0,12,0,0,0,0,-14,-8,-10,-14,-15,-15,-26,-19,-57,-10,-28,-10,-98,-20,-156,-148,-151,-155,-154,-144,-141,0,0,0,-4,-8,-8,0,0,0,0,0,0,0,0,0,0,0,0,0,0,0,0,0,-4,0,-8,-8,-4,0,0,0,0,0,0,29959,12081,29974,29975,29975,29975,29975,29976,29977,29978,29980,29981,29983,29984]} 1. d4 {[%emt 0:00:13]} Nf6 {[%emt 0:00:10]} 2. c4 {[%emt 0:00:08]} g6 {[%emt 0:00:06]} 3. Nc3 {[%emt 0:00:36]} d5 {[%emt 0:00:06]} 4. cxd5 {[%emt 0:01:00]} Nxd5 {[%emt 0:00:02]} 5. e4 {[%emt 0:00:32]} Nxc3 {[%emt 0:00:02]} 6. bxc3 {[%emt 0:00:08]} Bg7 {[%emt 0:00:06]} 7. Bc4 {[%emt 0:00:29]} c5 {[%emt 0:00:06]} 8. Ne2 {[%emt 0:00:07]} Nc6 {[%emt 0:00:07]} 9. Be3 {[%emt 0:00:08]} O-O {[%emt 0:00:06]} 10. O-O {[%emt 0:00:18]} b6 {[%emt 0:00:08]} 11. h4 {[%emt 1:32:21][%cal Bh2h4,Bh4h5][%mdl 32] D87: Exchange Grünfeld: Classical Line: Variations without ...cxd4.} cxd4 {[%emt 0:10:17]} 12. cxd4 {[%emt 0:00:00]} Bb7 {[%emt 0:00:07]} 13. h5 {[%emt 0:00:00] The position is equal.} Rc8 {[%emt 0:00:01][%cal Oc6d4]} 14. Rc1 {[%emt 0:00:00]} (14. h6 $5 {[%cal Rh6g7]} Bf6 15. Rc1 $11) 14... Na5 {[%emt 0:32:39]} 15. Bd3 {[%emt 0:00:00]} Rxc1 {[%emt 0:00:04]} 16. Qxc1 {[%emt 0:00:00]} Qd7 {[%emt 0:00:03] [#]} 17. Bh6 $146 {[%emt 0:00:00]} ({Predecessor:} 17. h6 Rc8 18. Qb2 Bf8 19. Rc1 e6 20. f3 Nc6 21. Bc4 Na5 22. Bd3 Nc6 23. Bc4 Na5 {½-½ (23) Riazantsev,A (2642)-Xu,X (2576) China 2019}) 17... Rc8 {[%emt 0:54:50]} 18. Qe3 {[%emt 0:00:00]} Nc4 {[%emt 0:00:00]} 19. Bxc4 {[%emt 0:00:00]} Rxc4 {[%emt 0:00:00]} 20. Bxg7 {[%emt 0:00:00]} Kxg7 {[%emt 0:00:00]} 21. h6+ {[%emt 0:00:00]} (21. d5 {looks sharper.} Qb5 22. Nd4 Qc5 23. Rd1) 21... Kf8 {[%emt 0:00:00]} 22. d5 {[%emt 0:00:00]} Ke8 {[%emt 0:00:00]} 23. Nd4 {[%emt 0:00:00][%cal Be2d4,Bd4f3,Bf3d2][%mdl 32]} e5 {[%emt 0:00:00]} 24. Nf3 {[%emt 0:00:00]} f6 {[%emt 0:00:00]} 25. Nd2 {[%emt 0:00:00]} Rc2 {[%emt 0:00:00]} 26. f4 {[%emt 0:00:00]} Ba6 {[%emt 0:00:00]} (26... Rxa2 27. fxe5 Qc7 28. Rxf6 Ra1+ 29. Kf2 $18) 27. Rf2 {[%emt 0:00:00] Hoping for fxe5.} Rc1+ {[%emt 0:00:00]} (27... Rxa2 28. fxe5 Qc7 29. Rxf6 (29. exf6 Ra1+ 30. Nf1 Rxf1+ 31. Rxf1 Bxf1 $11) 29... Ra1+ 30. Kf2 $18) 28. Kh2 {[%emt 0:00:00]} Qg4 {[%emt 0:00:00]} 29. Qh3 {[%emt 0:00:00] Prevents Qh4.} Qxh3+ {[%emt 0:00:00]} 30. Kxh3 {[%emt 0:00:00]} exf4 {[%emt 0:00:00]} 31. Rxf4 $11 {[%emt 0:00:00][%mdl 4096] Endgame KRB-KRN} Ke7 {[%emt 0:00:00]} 32. Kh2 {[%emt 0:00:00][%cal Oe4e5]} Rd1 {[%emt 0:00:00]} (32... Bb5 $15) 33. Rf2 {[%emt 0:00:00]} Bd3 {[%emt 0:00:00]} 34. g4 {[%emt 0:00:00] [#]} (34. Kg3 $11 {keeps the balance.}) 34... Re1 {[%emt 0:00:00]} (34... g5 $1 $17) 35. g5 {[%emt 0:00:00]} (35. Kg3 $11) 35... fxg5 $17 {[%emt 0:00:00]} 36. Nf3 {[%emt 0:00:00]} Rxe4 {[%emt 0:00:00]} 37. Nxg5 {[%emt 0:00:00]} Rh4+ {[%emt 0:00:00]} 38. Kg3 {[%emt 0:00:00] [#]} Rxh6 {[%emt 0:00:00]} ({Better is} 38... Rh5 $1 $17 {[%cal Rh5g5]} 39. Nxh7 Rxh6) 39. Rf7+ $11 {[%emt 0:00:00]} Kd6 {[%emt 0:00:00] Threatens to win with ...Rh1.} 40. Rf3 {[%emt 0:00:00] Nf7+ is the strong threat.} Rh5 {[%emt 0:00:00]} 41. Nf7+ {[%emt 0:00:00]} Kxd5 {[%emt 0:27:16]} 42. Rxd3+ {[%emt 0:00:00] KRN-KR} Kc4 {[%emt 0:00:30]} 43. Rd1 {[%emt 0:00:00]} Kc3 {[%emt 0:00:30]} 44. Nd6 {[%emt 0:00:00]} Kc2 {[%emt 0:00:30]} 45. Re1 {[%emt 0:00:00]} Rd5 {[%emt 0:00:30]} 46. Ne4 {[%emt 0:00:00]} Kd3 {[%emt 0:00:30]} 47. Nf2+ {[%emt 0:00:00]} Kc4 {[%emt 0:00:30]} 48. Rc1+ {[%emt 0:00:00]} Kb4 {[%emt 0:00:30]} 49. Rc2 {[%emt 0:00:00]} Rf5 {[%emt 0:00:30]} 50. Ne4 {[%emt 0:00:00]} Ka3 {[%emt 0:00:30]} 51. Nd2 {[%emt 0:00:00]} Rc5 {[%emt 0:00:30]} 52. Nb1+ {[%emt 0:00:00]} Kb4 {[%emt 0:00:30]} 53. Rb2+ {[%emt 0:00:00]} Ka5 {[%emt 0:00:30]} 54. Nd2 {[%emt 0:00:00] Black must now prevent Nb3+.} Ka4 {[%emt 0:00:30]} 55. Ne4 {[%emt 0:00:00]} Ka3 $2 {[%emt 0:00:30][%mdl 8192]} (55... Rh5 $11) 56. Rb3+ {[%emt 0:00:00]} Kxa2 {[%emt 0:00:30]} 57. Nxc5 {[%emt 0:00:00] White mates.} bxc5 $18 {[%emt 0:00:30] KR-KP} 58. Rb5 {[%emt 0:00:00]} c4 {[%emt 0:00:30]} 59. Kf3 {[%emt 0:00:00]} h5 {[%emt 0:00:30]} 60. Ke3 {[%emt 0:00:00]} h4 {[%emt 0:00:30]} 61. Kd4 {[%emt 0:00:00]} h3 {[%emt 0:00:30]} 62. Kc3 {[%emt 0:00:00] Quite a comeback for White.  Weighted Error Value: White=0.13 (very precise) /Black=0.35} 1-0

[Event "55th Iranian-ch Men Final 2022"]
[Site "Iran"]
[Date "2022.06.20"]
[Round "8.1"]
[White "Mosadeghpour, Masoud"]
[Black "Darini, Pouria"]
[Result "1-0"]
[ECO "B22"]
[WhiteElo "2474"]
[BlackElo "2431"]
[Annotator "RC"]
[PlyCount "55"]
[EventDate "2022.06.15"]
[EventType "tourn"]
[EventCountry "IRI"]
[SourceTitle "playchess.com"]
[Source "ChessBase"]
[SourceQuality "1"]
[TimeControl "40/5400+30:1800+30"]

1. e4 {[%emt 0:08:44]} c5 {[%emt 0:00:15]} 2. d4 {[%emt 0:01:50]} cxd4 {[%emt 0:00:09]} 3. c3 {[%emt 0:00:08]} Nf6 {[%emt 0:00:59]} 4. e5 {[%emt 0:00:18]} Nd5 {[%emt 0:00:02]} 5. Nf3 {[%emt 0:00:39]} d6 {[%emt 0:04:30]} 6. Qxd4 {[%emt 0:03:09]} e6 {[%emt 0:05:44]} 7. Nbd2 {[%emt 0:01:45]} a6 {[%emt 0:11:32]} 8. exd6 {[%emt 0:00:51]} Nc6 {[%emt 0:00:14]} 9. Qg4 {[%emt 0:00:13]} h5 {[%emt 0:22:45]} 10. Qc4 {[%emt 0:00:47]} Qxd6 {[%emt 0:06:57]} 11. g3 {[%emt 0:07:05]} Bd7 {[%emt 0:04:09]} 12. Qe2 {[%emt 0:05:04]} Qc7 {[%emt 0:02:24]} 13. Bg2 {[%emt 0:04:53]} h4 {[%emt 0:13:40]} 14. O-O {[%emt 0:05:05]} hxg3 {[%emt 0:01:50]} 15. hxg3 {[%emt 0:00:47]} Be7 {[%emt 0:06:17]} 16. Ne4 {[%emt 0:09:28]} e5 {[%emt 0:02:21]} 17. Rd1 {[%emt 0:07:56]} Nf6 {[%emt 0:00:01]} 18. Nfg5 {[%emt 0:06:50]} Bf5 {[%emt 0:03:27]} 19. Nxf6+ {[%emt 0:06:44]} Bxf6 {[%emt 0:05:26]} 20. Bd5 {[%emt 0:07:04]} O-O-O {[%emt 0:03:35]} 21. Nxf7 {[%emt 0:06:45]} Rxd5 {[%emt 0:00:27]} 22. Nxh8 {[%emt 0:00:09]} Qd8 {[%emt 0:02:22]} 23. Rxd5 {[%emt 0:15:46]} Qxd5 24. Qh5 {[%emt 0:00:00]} Ne7 {[%emt 0:02:33]} 25. c4 {[%emt 0:00:00]} Qe4 {[%emt 0:00:39]} 26. Bg5 {[%emt 0:00:00]} g6 {[%emt 0:00:39]} 27. Nf7 {[%emt 0:00:00]} Kc7 {[%emt 0:00:31]} 28. Qd1 {[%emt 0:00:00]} 1-0